[Event "Titled Tuesday Blitz September 27 Late 2022"]
[White "Mikhailov, Viacheslav"]
[Black "Svane, Rasmus"]
[WhiteFideId "4187369"]
[BlackFideId "4657101"]
[WhiteElo "2381"]
[BlackElo "2674"]
[Result "0-1"]
[Round "07"]
[TimeControl "180+1"]
[Date "2022.09.27"]
[WhiteClock "0:00:01"]
[BlackClock "0:00:06"]

1. Nf3 {[%clk 0:03:00]}  d5 {[%clk 0:02:59]} 2. g3 {[%clk 0:03:00]}  e6 {[%clk 0:03:00]} 3. Bg2 {[%clk 0:03:00]}  Nf6 {[%clk 0:03:01]} 4. O-O {[%clk 0:03:01]}  Be7 {[%clk 0:03:01]} 5. c4 {[%clk 0:03:01]}  O-O {[%clk 0:03:01]} 6. b3 {[%clk 0:03:01]}  d4 {[%clk 0:03:01]} 7. d3 {[%clk 0:02:58]}  Nc6 {[%clk 0:02:54]} 8. e3 {[%clk 0:02:58]}  Bc5 {[%clk 0:02:44]} 9. exd4 {[%clk 0:02:44]}  Nxd4 {[%clk 0:02:11]} 10. Bb2 {[%clk 0:02:40]}  a5 {[%clk 0:02:06]} 11. Nc3 {[%clk 0:02:36]}  Nxf3+ {[%clk 0:01:59]} 12. Qxf3 {[%clk 0:02:35]}  Bd4 {[%clk 0:02:00]} 13. Rab1 {[%clk 0:02:01]}  c6 {[%clk 0:01:49]} 14. Ne4 {[%clk 0:01:51]}  Bxb2 {[%clk 0:01:35]} 15. Rxb2 {[%clk 0:01:51]}  Nxe4 {[%clk 0:01:16]} 16. dxe4 {[%clk 0:01:47]}  e5 {[%clk 0:01:13]} 17. Rd1 {[%clk 0:01:45]}  Qe7 {[%clk 0:01:08]} 18. Qc3 {[%clk 0:01:37]}  Qc5 {[%clk 0:01:00]} 19. h3 {[%clk 0:01:22]}  Be6 {[%clk 0:00:59]} 20. Bf1 {[%clk 0:01:18]}  Rfd8 {[%clk 0:00:56]} 21. Rbd2 {[%clk 0:01:17]}  Rxd2 {[%clk 0:00:56]} 22. Qxd2 {[%clk 0:01:18]}  h6 {[%clk 0:00:56]} 23. Qb2 {[%clk 0:00:59]}  Rf8 {[%clk 0:00:46]} 24. a3 {[%clk 0:00:57]}  Qb6 {[%clk 0:00:36]} 25. b4 {[%clk 0:00:53]}  axb4 {[%clk 0:00:37]} 26. axb4 {[%clk 0:00:53]}  Qc7 {[%clk 0:00:35]} 27. c5 {[%clk 0:00:52]}  Ra8 {[%clk 0:00:35]} 28. Rd6 {[%clk 0:00:50]}  Qc8 {[%clk 0:00:20]} 29. h4 {[%clk 0:00:34]}  f6 {[%clk 0:00:20]} 30. b5 {[%clk 0:00:31]}  cxb5 {[%clk 0:00:15]} 31. Qxb5 {[%clk 0:00:32]}  Bf7 {[%clk 0:00:14]} 32. Rd7 {[%clk 0:00:14]}  Qc6 {[%clk 0:00:04]} 33. Qxb7 {[%clk 0:00:11]}  Qxb7 {[%clk 0:00:04]} 34. Rxb7 {[%clk 0:00:12]}  Rc8 {[%clk 0:00:05]} 35. Rb5 {[%clk 0:00:10]}  Kf8 {[%clk 0:00:05]} 36. Bh3 {[%clk 0:00:07]}  Rc7 {[%clk 0:00:05]} 37. Ra5 {[%clk 0:00:06]}  Ke7 {[%clk 0:00:06]} 38. Kf1 {[%clk 0:00:06]}  Bg6 {[%clk 0:00:06]} 39. Bf5 {[%clk 0:00:04]}  Bxf5 {[%clk 0:00:06]} 40. exf5 {[%clk 0:00:05]}  Kd7 {[%clk 0:00:07]} 41. Ke2 {[%clk 0:00:04]}  Kc6 {[%clk 0:00:08]} 42. Kf3 {[%clk 0:00:05]}  Kd5 {[%clk 0:00:06]} 43. Kg4 {[%clk 0:00:04]}  e4 {[%clk 0:00:04]} 44. Kh5 {[%clk 0:00:04]}  Kd4 {[%clk 0:00:03]} 45. Kg6 {[%clk 0:00:04]}  Kd3 {[%clk 0:00:03]} 46. g4 {[%clk 0:00:03]}  Ke2 {[%clk 0:00:04]} 47. Ra2+ {[%clk 0:00:03]}  Kf3 {[%clk 0:00:04]} 48. Rc2 {[%clk 0:00:02]}  Kxg4 {[%clk 0:00:03]} 49. Rc3 {[%clk 0:00:02]}  Kxh4 {[%clk 0:00:03]} 50. Rc4 {[%clk 0:00:03]}  Kh3 {[%clk 0:00:02]} 51. Rxe4 {[%clk 0:00:03]}  Rxc5 {[%clk 0:00:02]} 52. Kxg7 {[%clk 0:00:01]}  Rxf5 {[%clk 0:00:02]} 53. f4 {[%clk 0:00:01]}  Kg4 {[%clk 0:00:03]} 54. Kxh6 {[%clk 0:00:01]}  Rxf4 {[%clk 0:00:03]} 55. Re1 {[%clk 0:00:02]}  Kf5 {[%clk 0:00:03]} 56. Kh5 {[%clk 0:00:02]}  Rf2 {[%clk 0:00:03]} 57. Kh4 {[%clk 0:00:02]}  Kf4 {[%clk 0:00:03]} 58. Kh3 {[%clk 0:00:02]}  f5 {[%clk 0:00:04]} 59. Rd1 {[%clk 0:00:01]}  Ke3 {[%clk 0:00:03]} 60. Re1+ {[%clk 0:00:01]}  Kf3 {[%clk 0:00:04]} 61. Rb1 {[%clk 0:00:01]}  Re2 {[%clk 0:00:04]} 62. Rb3+ {[%clk 0:00:01]}  Kf2 {[%clk 0:00:03]} 63. Rb5 {[%clk 0:00:02]}  f4 {[%clk 0:00:04]} 64. Rb4 {[%clk 0:00:01]}  Kf3 {[%clk 0:00:04]} 65. Rb3+ {[%clk 0:00:01]}  Re3 {[%clk 0:00:05]} 66. Rb1 {[%clk 0:00:02]}  Ke2+ {[%clk 0:00:05]} 67. Kg2 {[%clk 0:00:02]}  Kd3 {[%clk 0:00:03]} 68. Kf2 {[%clk 0:00:02]}  Ke4 {[%clk 0:00:03]} 69. Rb4+ {[%clk 0:00:02]}  Kf5 {[%clk 0:00:04]} 70. Rb2 {[%clk 0:00:03]}  Kg4 {[%clk 0:00:04]} 71. Re2 {[%clk 0:00:03]}  Rh3 {[%clk 0:00:05]} 72. Kg1 {[%clk 0:00:03]}  Rg3+ {[%clk 0:00:05]} 73. Kf1 {[%clk 0:00:02]}  Rf3+ {[%clk 0:00:05]} 74. Kg1 {[%clk 0:00:03]}  Rd3 {[%clk 0:00:05]} 75. Rb2 {[%clk 0:00:02]}  Kg3 {[%clk 0:00:05]} 76. Rg2+ {[%clk 0:00:02]}  Kf3 {[%clk 0:00:06]} 77. Rf2+ {[%clk 0:00:02]}  Kg4 {[%clk 0:00:06]} 78. Rg2+ {[%clk 0:00:03]}  Kf5 {[%clk 0:00:06]} 79. Rb2 {[%clk 0:00:03]}  Rc3 {[%clk 0:00:05]} 80. Kf2 {[%clk 0:00:03]}  Kg4 {[%clk 0:00:06]} 81. Rb4 {[%clk 0:00:01]}  Rh3 {[%clk 0:00:06]} 82. Kg2 {[%clk 0:00:02]}  Rc3 {[%clk 0:00:06]} 83. Kf2 {[%clk 0:00:02]}  Rc2+ {[%clk 0:00:07]} 84. Kf1 {[%clk 0:00:02]}  Kg3 {[%clk 0:00:07]} 85. Rb8 {[%clk 0:00:02]}  Rc1+ {[%clk 0:00:07]} 86. Ke2 {[%clk 0:00:02]}  f3+ {[%clk 0:00:08]} 87. Kd2 {[%clk 0:00:03]}  f2 {[%clk 0:00:07]} 88. Rg8+ {[%clk 0:00:02]}  Kh4 {[%clk 0:00:07]} 89. Rh8+ {[%clk 0:00:03]}  Kg5 {[%clk 0:00:07]} 90. Rg8+ {[%clk 0:00:03]}  Kh6 {[%clk 0:00:07]} 91. Kxc1 {[%clk 0:00:03]}  f1=Q+ {[%clk 0:00:07]} 92. Kd2 {[%clk 0:00:03]}  Qf4+ {[%clk 0:00:08]} 93. Ke1 {[%clk 0:00:02]}  Qb4+ {[%clk 0:00:07]} 94. Kf2 {[%clk 0:00:01]}  Qd4+ {[%clk 0:00:07]} 95. Kg3 {[%clk 0:00:01]}  Qc3+ {[%clk 0:00:07]} 96. Kh2 {[%clk 0:00:01]}  Qb2+ {[%clk 0:00:07]} 97. Rg2 {[%clk 0:00:01]}  Qe5+ {[%clk 0:00:06]} 98. Kh1 {[%clk 0:00:02]}  Kh5 {[%clk 0:00:07]} 99. Rh2+ {[%clk 0:00:02]}  Kg4 {[%clk 0:00:07]} 100. Rg2+ {[%clk 0:00:03]}  Kf3 {[%clk 0:00:08]} 101. Rg8 {[%clk 0:00:01]}  Qa1+ {[%clk 0:00:06]} 102. Kh2 {[%clk 0:00:01]}  Qa2+ {[%clk 0:00:06]} 0-1


[Site "https://www.chess.com"]

[Event "Titled Tuesday Blitz September 27 Late 2022"]
[White "Muradli, Mahammad"]
[Black "Averjanov, Alexey"]
[WhiteFideId "13409301"]
[BlackFideId "14109867"]
[WhiteElo "2611"]
[BlackElo "2659"]
[Result "0-1"]
[Round "07"]
[TimeControl "180+1"]
[Date "2022.09.27"]
[WhiteClock "0:00:52"]
[BlackClock "0:02:37"]

1. Nf3 {[%clk 0:03:00]}  c5 {[%clk 0:02:59]} 2. c4 {[%clk 0:03:01]}  Nc6 {[%clk 0:02:59]} 3. Nc3 {[%clk 0:03:01]}  g6 {[%clk 0:02:59]} 4. e3 {[%clk 0:03:00]}  Nf6 {[%clk 0:03:00]} 5. d4 {[%clk 0:03:01]}  cxd4 {[%clk 0:03:01]} 6. exd4 {[%clk 0:03:02]}  d5 {[%clk 0:03:01]} 7. cxd5 {[%clk 0:03:03]}  Nxd5 {[%clk 0:03:02]} 8. Bc4 {[%clk 0:03:04]}  Nxc3 {[%clk 0:03:02]} 9. bxc3 {[%clk 0:03:04]}  Bg7 {[%clk 0:03:02]} 10. O-O {[%clk 0:03:04]}  O-O {[%clk 0:03:02]} 11. Ba3 {[%clk 0:03:01]}  b6 {[%clk 0:02:59]} 12. Re1 {[%clk 0:02:58]}  Re8 {[%clk 0:02:59]} 13. Bxf7+ {[%clk 0:02:41]}  Kxf7 {[%clk 0:02:59]} 14. Ng5+ {[%clk 0:02:42]}  Kg8 {[%clk 0:02:54]} 15. Qf3 {[%clk 0:02:42]}  Bd7 {[%clk 0:02:46]} 16. Qf7+ {[%clk 0:01:38]}  Kh8 {[%clk 0:02:45]} 17. Qd5 {[%clk 0:01:37]}  e6 {[%clk 0:02:44]} 18. Qb5 {[%clk 0:00:52]}  Nxd4 {[%clk 0:02:37]} 0-1


[Site "https://www.chess.com"]

[Event "Titled Tuesday Blitz September 27 Late 2022"]
[White "Papasimakopoulos, Alexandros"]
[Black "Bluebaum, Matthias"]
[WhiteFideId "4244125"]
[BlackFideId "24651516"]
[WhiteElo "2357"]
[BlackElo "2633"]
[Result "0-1"]
[Round "07"]
[TimeControl "180+1"]
[Date "2022.09.27"]
[WhiteClock "0:00:36"]
[BlackClock "0:00:08"]

1. d4 {[%clk 0:03:00]}  Nf6 {[%clk 0:02:59]} 2. c4 {[%clk 0:03:01]}  e6 {[%clk 0:03:00]} 3. Nc3 {[%clk 0:03:01]}  d5 {[%clk 0:03:01]} 4. cxd5 {[%clk 0:03:01]}  exd5 {[%clk 0:03:01]} 5. Bg5 {[%clk 0:03:02]}  c6 {[%clk 0:03:02]} 6. e3 {[%clk 0:03:02]}  h6 {[%clk 0:03:03]} 7. Bh4 {[%clk 0:03:02]}  Be7 {[%clk 0:03:03]} 8. Bd3 {[%clk 0:03:02]}  O-O {[%clk 0:03:04]} 9. Qc2 {[%clk 0:03:03]}  Re8 {[%clk 0:03:04]} 10. Nf3 {[%clk 0:03:03]}  Ne4 {[%clk 0:03:04]} 11. Bxe7 {[%clk 0:03:03]}  Qxe7 {[%clk 0:03:05]} 12. Bxe4 {[%clk 0:03:04]}  dxe4 {[%clk 0:03:05]} 13. Nd2 {[%clk 0:03:05]}  f5 {[%clk 0:03:01]} 14. O-O {[%clk 0:03:04]}  Nd7 {[%clk 0:02:56]} 15. Rac1 {[%clk 0:03:00]}  Nf6 {[%clk 0:02:50]} 16. Nc4 {[%clk 0:03:01]}  Be6 {[%clk 0:02:49]} 17. Ne5 {[%clk 0:03:00]}  c5 {[%clk 0:02:35]} 18. Ng6 {[%clk 0:02:55]}  Qf7 {[%clk 0:02:18]} 19. Ne5 {[%clk 0:02:55]}  Qe7 {[%clk 0:02:17]} 20. Ng6 {[%clk 0:02:55]}  Qf7 {[%clk 0:01:56]} 21. Ne5 {[%clk 0:02:56]}  Qc7 {[%clk 0:01:57]} 22. Nb5 {[%clk 0:02:55]}  Qa5 {[%clk 0:01:56]} 23. Qxc5 {[%clk 0:02:48]}  b6 {[%clk 0:01:49]} 24. b4 {[%clk 0:02:19]}  Qa4 {[%clk 0:01:47]} 25. Nc3 {[%clk 0:02:13]}  bxc5 {[%clk 0:01:31]} 26. Nxa4 {[%clk 0:02:13]}  cxb4 {[%clk 0:01:32]} 27. Rc2 {[%clk 0:01:56]}  Rac8 {[%clk 0:01:22]} 28. Nc5 {[%clk 0:01:55]}  Bd5 {[%clk 0:01:18]} 29. h3 {[%clk 0:01:47]}  a5 {[%clk 0:01:18]} 30. g4 {[%clk 0:01:44]}  fxg4 {[%clk 0:01:15]} 31. hxg4 {[%clk 0:01:45]}  Rxe5 {[%clk 0:01:10]} 32. dxe5 {[%clk 0:01:45]}  Nxg4 {[%clk 0:01:11]} 33. Rd1 {[%clk 0:01:39]}  Bf7 {[%clk 0:00:42]} 34. Rdd2 {[%clk 0:01:38]}  Nxe5 {[%clk 0:00:34]} 35. Nxe4 {[%clk 0:01:39]}  Nf3+ {[%clk 0:00:29]} 36. Kh1 {[%clk 0:01:23]}  Re8 {[%clk 0:00:20]} 37. Nd6 {[%clk 0:01:19]}  Nxd2 {[%clk 0:00:16]} 38. Nxe8 {[%clk 0:01:18]}  Ne4 {[%clk 0:00:17]} 39. Nc7 {[%clk 0:01:16]}  Nc3 {[%clk 0:00:17]} 40. a3 {[%clk 0:01:13]}  Bg6 {[%clk 0:00:11]} 41. Rc1 {[%clk 0:00:46]}  Na2 {[%clk 0:00:11]} 42. axb4 {[%clk 0:00:41]}  axb4 {[%clk 0:00:07]} 43. Rc6 {[%clk 0:00:39]}  Be4+ {[%clk 0:00:07]} 44. Kg1 {[%clk 0:00:39]}  Bxc6 {[%clk 0:00:08]} 45. Nd5 {[%clk 0:00:36]}  Bxd5 {[%clk 0:00:08]} 0-1


[Site "https://www.chess.com"]

[Event "Titled Tuesday Blitz September 27 Late 2022"]
[White "Pinheiro, Iung Alicio de O."]
[Black "Djordjevic, Dejan N"]
[WhiteFideId "2104350"]
[BlackFideId "913316"]
[WhiteElo "2283"]
[BlackElo "2262"]
[Result "1-0"]
[Round "07"]
[TimeControl "180+1"]
[Date "2022.09.28"]
[WhiteClock "0:00:05"]
[BlackClock "0:00:01"]

1. c4 {[%clk 0:03:00]}  Nf6 {[%clk 0:02:59]} 2. g3 {[%clk 0:03:00]}  g6 {[%clk 0:02:59]} 3. Bg2 {[%clk 0:02:58]}  Bg7 {[%clk 0:02:59]} 4. Nc3 {[%clk 0:02:58]}  d6 {[%clk 0:03:00]} 5. d3 {[%clk 0:02:57]}  O-O {[%clk 0:03:00]} 6. Bg5 {[%clk 0:02:55]}  Nc6 {[%clk 0:03:00]} 7. Qd2 {[%clk 0:02:50]}  Re8 {[%clk 0:02:59]} 8. Bh6 {[%clk 0:02:50]}  Bh8 {[%clk 0:02:59]} 9. h4 {[%clk 0:02:50]}  Ng4 {[%clk 0:02:37]} 10. h5 {[%clk 0:02:49]}  Nxh6 {[%clk 0:02:34]} 11. hxg6 {[%clk 0:02:45]}  hxg6 {[%clk 0:02:03]} 12. Qxh6 {[%clk 0:02:37]}  Bg7 {[%clk 0:02:03]} 13. Qh7+ {[%clk 0:02:30]}  Kf8 {[%clk 0:02:03]} 14. Nf3 {[%clk 0:02:22]}  e6 {[%clk 0:02:02]} 15. Ne4 {[%clk 0:02:12]}  Nd4 {[%clk 0:01:44]} 16. Nh4 {[%clk 0:01:48]}  d5 {[%clk 0:01:34]} 17. cxd5 {[%clk 0:00:52]}  exd5 {[%clk 0:01:34]} 18. Nc3 {[%clk 0:00:52]}  c6 {[%clk 0:01:27]} 19. Kf1 {[%clk 0:00:39]}  Qf6 {[%clk 0:01:13]} 20. e4 {[%clk 0:00:37]}  Nc2 {[%clk 0:01:02]} 21. Rc1 {[%clk 0:00:34]}  Ne3+ {[%clk 0:01:01]} 22. Kg1 {[%clk 0:00:34]}  Nxg2 {[%clk 0:01:01]} 23. Kxg2 {[%clk 0:00:32]}  Be6 {[%clk 0:00:47]} 24. Nf3 {[%clk 0:00:24]}  Bg4 {[%clk 0:00:28]} 25. Nh2 {[%clk 0:00:23]}  Be6 {[%clk 0:00:24]} 26. Nf3 {[%clk 0:00:17]}  dxe4 {[%clk 0:00:24]} 27. Nxe4 {[%clk 0:00:16]}  Qxb2 {[%clk 0:00:24]} 28. Nh4 {[%clk 0:00:16]}  Bd5 {[%clk 0:00:15]} 29. Nxg6+ {[%clk 0:00:15]}  fxg6 {[%clk 0:00:15]} 30. Qxg6 {[%clk 0:00:16]}  Bxe4+ {[%clk 0:00:13]} 31. dxe4 {[%clk 0:00:15]}  Qf6 {[%clk 0:00:13]} 32. Qg4 {[%clk 0:00:15]}  Rad8 {[%clk 0:00:12]} 33. Rh5 {[%clk 0:00:15]}  Kg8 {[%clk 0:00:11]} 34. Rcc5 {[%clk 0:00:14]}  Qd4 {[%clk 0:00:08]} 35. Rcf5 {[%clk 0:00:09]}  Qxe4+ {[%clk 0:00:09]} 36. Qxe4 {[%clk 0:00:07]}  Rxe4 {[%clk 0:00:08]} 37. Rhg5 {[%clk 0:00:07]}  Rd7 {[%clk 0:00:08]} 38. a3 {[%clk 0:00:06]}  Ra4 {[%clk 0:00:07]} 39. Rf3 {[%clk 0:00:04]}  Rf7 {[%clk 0:00:07]} 40. Rb3 {[%clk 0:00:04]}  b6 {[%clk 0:00:06]} 41. Rh5 {[%clk 0:00:04]}  c5 {[%clk 0:00:06]} 42. Re3 {[%clk 0:00:05]}  Bd4 {[%clk 0:00:05]} 43. Re8+ {[%clk 0:00:05]}  Kg7 {[%clk 0:00:04]} 44. Re2 {[%clk 0:00:05]}  Rxa3 {[%clk 0:00:03]} 45. f4 {[%clk 0:00:06]}  Rd7 {[%clk 0:00:01]} 46. Rg5+ {[%clk 0:00:06]}  Kf7 {[%clk 0:00:01]} 47. Kh3 {[%clk 0:00:06]}  Bf6 {[%clk 0:00:01]} 48. Rf5 {[%clk 0:00:06]}  Rdd3 {[%clk 0:00:01]} 49. Rg2 {[%clk 0:00:07]}  c4 {[%clk 0:00:01]} 50. Kg4 {[%clk 0:00:06]}  c3 {[%clk 0:00:01]} 51. Rh5 {[%clk 0:00:07]}  c2 {[%clk 0:00:01]} 52. Rxc2 {[%clk 0:00:06]}  Rxg3+ {[%clk 0:00:01]} 53. Kf5 {[%clk 0:00:06]}  Ra5+ {[%clk 0:00:01]} 54. Ke4 {[%clk 0:00:06]}  Rxh5 {[%clk 0:00:02]} 55. Rc7+ {[%clk 0:00:05]}  Be7 {[%clk 0:00:02]} 56. f5 {[%clk 0:00:04]}  Rh4+ {[%clk 0:00:01]} 57. Ke5 {[%clk 0:00:05]}  Re3+ {[%clk 0:00:01]} 58. Kd5 {[%clk 0:00:05]}  Rhh3 {[%clk 0:00:01]} 59. Rxa7 {[%clk 0:00:05]}  Rd3+ {[%clk 0:00:01]} 60. Kc6 {[%clk 0:00:05]} 1-0


[Site "https://www.chess.com"]

[Event "Titled Tuesday Blitz September 27 Late 2022"]
[White "Preotu, Razvan"]
[Black "Przybylski, Wojciech"]
[WhiteFideId "2613280"]
[BlackFideId "1117599"]
[WhiteElo "2407"]
[BlackElo "2133"]
[Result "1-0"]
[Round "07"]
[TimeControl "180+1"]
[Date "2022.09.28"]
[WhiteClock "0:00:22"]
[BlackClock "0:00:01"]

1. e4 {[%clk 0:03:00]}  e5 {[%clk 0:02:57]} 2. Nf3 {[%clk 0:03:00]}  Nf6 {[%clk 0:02:57]} 3. d4 {[%clk 0:02:59]}  Nxe4 {[%clk 0:02:54]} 4. Bd3 {[%clk 0:02:59]}  d5 {[%clk 0:02:54]} 5. Nxe5 {[%clk 0:03:00]}  Nd7 {[%clk 0:02:54]} 6. Nxd7 {[%clk 0:03:00]}  Bxd7 {[%clk 0:02:54]} 7. O-O {[%clk 0:03:01]}  Bd6 {[%clk 0:02:55]} 8. Nc3 {[%clk 0:03:01]}  Nxc3 {[%clk 0:02:53]} 9. bxc3 {[%clk 0:03:02]}  O-O {[%clk 0:02:51]} 10. Qh5 {[%clk 0:03:02]}  f5 {[%clk 0:02:51]} 11. Bg5 {[%clk 0:03:01]}  Qe8 {[%clk 0:02:49]} 12. Qf3 {[%clk 0:03:00]}  c6 {[%clk 0:02:49]} 13. Rfe1 {[%clk 0:02:59]}  Qf7 {[%clk 0:02:49]} 14. Bf4 {[%clk 0:02:57]}  Ba3 {[%clk 0:02:39]} 15. Qg3 {[%clk 0:02:47]}  Rfe8 {[%clk 0:02:28]} 16. Rab1 {[%clk 0:02:27]}  b5 {[%clk 0:01:44]} 17. Be5 {[%clk 0:02:24]}  Be7 {[%clk 0:01:34]} 18. Re2 {[%clk 0:02:07]}  Qg6 {[%clk 0:01:27]} 19. Qxg6 {[%clk 0:01:14]}  hxg6 {[%clk 0:01:27]} 20. g3 {[%clk 0:01:14]}  g5 {[%clk 0:01:11]} 21. Kg2 {[%clk 0:01:01]}  Kf7 {[%clk 0:01:05]} 22. Rbe1 {[%clk 0:00:52]}  g6 {[%clk 0:01:01]} 23. h3 {[%clk 0:00:43]}  Ba3 {[%clk 0:00:58]} 24. Rb1 {[%clk 0:00:43]}  a5 {[%clk 0:00:39]} 25. f3 {[%clk 0:00:43]}  a4 {[%clk 0:00:38]} 26. g4 {[%clk 0:00:36]}  Re7 {[%clk 0:00:35]} 27. Ree1 {[%clk 0:00:36]}  Rae8 {[%clk 0:00:33]} 28. Rh1 {[%clk 0:00:36]}  Rf8 {[%clk 0:00:26]} 29. Kg3 {[%clk 0:00:35]}  Ke8 {[%clk 0:00:22]} 30. h4 {[%clk 0:00:35]}  fxg4 {[%clk 0:00:17]} 31. fxg4 {[%clk 0:00:35]}  gxh4+ {[%clk 0:00:16]} 32. Rxh4 {[%clk 0:00:34]}  g5 {[%clk 0:00:12]} 33. Rh6 {[%clk 0:00:31]}  Rg8 {[%clk 0:00:12]} 34. Rf1 {[%clk 0:00:29]}  Re6 {[%clk 0:00:08]} 35. Rh7 {[%clk 0:00:23]}  Be7 {[%clk 0:00:06]} 36. Rff7 {[%clk 0:00:23]}  Rxe5 {[%clk 0:00:01]} 37. dxe5 {[%clk 0:00:22]} 1-0


[Site "https://www.chess.com"]

[Event "Titled Tuesday Blitz September 27 Late 2022"]
[White "Rangel, Daniel"]
[Black "Gorshtein, Ido"]
[WhiteFideId "2124475"]
[BlackFideId "2815532"]
[WhiteElo "2225"]
[BlackElo "2411"]
[Result "0-1"]
[Round "07"]
[TimeControl "180+1"]
[Date "2022.09.27"]
[WhiteClock "0:00:09"]
[BlackClock "0:00:26"]

1. c4 {[%clk 0:03:00]}  Nc6 {[%clk 0:03:00]} 2. g3 {[%clk 0:02:57]}  g6 {[%clk 0:03:01]} 3. Bg2 {[%clk 0:02:58]}  Bg7 {[%clk 0:03:01]} 4. Nc3 {[%clk 0:02:58]}  Nf6 {[%clk 0:03:01]} 5. e3 {[%clk 0:02:58]}  O-O {[%clk 0:03:01]} 6. Nge2 {[%clk 0:02:58]}  d6 {[%clk 0:03:01]} 7. O-O {[%clk 0:02:58]}  e5 {[%clk 0:03:02]} 8. Rb1 {[%clk 0:02:55]}  Re8 {[%clk 0:02:59]} 9. b4 {[%clk 0:02:54]}  e4 {[%clk 0:02:37]} 10. Nf4 {[%clk 0:02:49]}  Bf5 {[%clk 0:02:29]} 11. Ncd5 {[%clk 0:02:43]}  Ne5 {[%clk 0:02:25]} 12. Qc2 {[%clk 0:02:33]}  Nxd5 {[%clk 0:02:22]} 13. Nxd5 {[%clk 0:02:30]}  c6 {[%clk 0:02:20]} 14. Nf4 {[%clk 0:02:29]}  Nf3+ {[%clk 0:02:14]} 15. Kh1 {[%clk 0:02:19]}  Qd7 {[%clk 0:02:02]} 16. Bb2 {[%clk 0:02:03]}  Be5 {[%clk 0:02:00]} 17. Ne2 {[%clk 0:01:26]}  Bh3 {[%clk 0:01:48]} 18. Ng1 {[%clk 0:01:11]}  Bxg2+ {[%clk 0:01:35]} 19. Kxg2 {[%clk 0:01:12]}  Qf5 {[%clk 0:01:32]} 20. Bxe5 {[%clk 0:01:04]}  dxe5 {[%clk 0:01:31]} 21. Rfd1 {[%clk 0:00:46]}  Rad8 {[%clk 0:01:28]} 22. b5 {[%clk 0:00:46]}  c5 {[%clk 0:01:28]} 23. b6 {[%clk 0:00:44]}  a6 {[%clk 0:01:28]} 24. Rb3 {[%clk 0:00:26]}  Rd6 {[%clk 0:00:55]} 25. Rb2 {[%clk 0:00:15]}  Red8 {[%clk 0:00:54]} 26. Nxf3 {[%clk 0:00:15]}  exf3+ {[%clk 0:00:54]} 27. Kh1 {[%clk 0:00:15]}  Rd3 {[%clk 0:00:48]} 28. Rg1 {[%clk 0:00:08]}  h5 {[%clk 0:00:44]} 29. a4 {[%clk 0:00:05]}  e4 {[%clk 0:00:43]} 30. a5 {[%clk 0:00:02]}  R8d6 {[%clk 0:00:43]} 31. Qc1 {[%clk 0:00:03]}  Qd7 {[%clk 0:00:42]} 32. Rd1 {[%clk 0:00:02]}  Kg7 {[%clk 0:00:39]} 33. Rc2 {[%clk 0:00:03]}  h4 {[%clk 0:00:38]} 34. Rg1 {[%clk 0:00:03]}  hxg3 {[%clk 0:00:38]} 35. Rxg3 {[%clk 0:00:02]}  Qe6 {[%clk 0:00:31]} 36. Qa1+ {[%clk 0:00:01]}  Qf6 {[%clk 0:00:27]} 37. Qc1 {[%clk 0:00:02]}  Rd8 {[%clk 0:00:24]} 38. h3 {[%clk 0:00:02]}  Rh8 {[%clk 0:00:24]} 39. Kh2 {[%clk 0:00:03]}  Rh4 {[%clk 0:00:24]} 40. Rc3 {[%clk 0:00:02]}  Rxc3 {[%clk 0:00:22]} 41. dxc3 {[%clk 0:00:03]}  Qe5 {[%clk 0:00:21]} 42. Qd2 {[%clk 0:00:03]}  Rh5 {[%clk 0:00:19]} 43. Qe1 {[%clk 0:00:03]}  Rg5 {[%clk 0:00:19]} 44. Qg1 {[%clk 0:00:02]}  Rxg3 {[%clk 0:00:19]} 45. Qxg3 {[%clk 0:00:02]}  Qxg3+ {[%clk 0:00:19]} 46. Kxg3 {[%clk 0:00:02]}  f5 {[%clk 0:00:19]} 47. Kf4 {[%clk 0:00:03]}  Kf7 {[%clk 0:00:18]} 48. h4 {[%clk 0:00:04]}  Kf6 {[%clk 0:00:18]} 49. Kg3 {[%clk 0:00:04]}  Ke5 {[%clk 0:00:18]} 50. h5 {[%clk 0:00:03]}  gxh5 {[%clk 0:00:18]} 51. Kh4 {[%clk 0:00:03]}  f4 {[%clk 0:00:19]} 52. exf4+ {[%clk 0:00:03]}  Kxf4 {[%clk 0:00:19]} 53. Kxh5 {[%clk 0:00:03]}  e3 {[%clk 0:00:20]} 54. fxe3+ {[%clk 0:00:03]}  Kxe3 {[%clk 0:00:21]} 55. Kg5 {[%clk 0:00:03]}  f2 {[%clk 0:00:21]} 56. Kf6 {[%clk 0:00:04]}  f1=Q+ {[%clk 0:00:22]} 57. Ke7 {[%clk 0:00:05]}  Qf3 {[%clk 0:00:21]} 58. Kd6 {[%clk 0:00:06]}  Qc6+ {[%clk 0:00:21]} 59. Ke7 {[%clk 0:00:06]}  Kd3 {[%clk 0:00:22]} 60. Kd8 {[%clk 0:00:06]}  Kxc3 {[%clk 0:00:23]} 61. Ke7 {[%clk 0:00:06]}  Kxc4 {[%clk 0:00:24]} 62. Kd8 {[%clk 0:00:07]}  Kb5 {[%clk 0:00:24]} 63. Ke7 {[%clk 0:00:08]}  Kxa5 {[%clk 0:00:25]} 64. Kd8 {[%clk 0:00:09]}  Kxb6 {[%clk 0:00:26]} 0-1


[Site "https://www.chess.com"]